Cogmind - Beta 16 @@@ ROGUE MODE // 2026.02.02 @ 19:35:28 Player: beans Result: Destroyed by G-47 Trooper with Particle Gun Performance ------------- Evolutions (2) 1000 Regions Visited (5) 1000 Robots Destroyed (24) 120 Value Destroyed (517) 517 Prototype IDs (23) 460 Alien Tech Used (0) 0 Bonus (300) 300 TOTAL SCORE: 3397 Bonus ------- Aligned with FarCom 300 Cogmind --------- Core Integrity 0/550 Matter 300/300 Energy 100/100 System Corruption 0% Temperature Cool (9) Movement Core (200) Ox3 Location -8/Materials Parts ------- > --- POWER (1) -------- (None) > --- PROPULSION (2) --- (None) > --- UTILITY (6) ------ Medium Storage Unit > --- WEAPON (2) ------- (None) > --- INVENTORY (10) --- Kinecellerator Trap Reconfigurator Army-in-a-Box (30/30) Chronowheel Peak State ------------ > --- POWER ------------ Light Deuterium Engine > --- PROPULSION ------- Aluminum Leg Carbon-fiber Leg > --- UTILITY ---------- Heat Sink Advanced Heat Sink Medium Storage Unit Kinecellerator Weapon Cycler Weapon Cycler > --- WEAPON ----------- Heavy Laser High-powered Shotgun > --- INVENTORY -------- Trap Reconfigurator Army-in-a-Box Chronowheel [Rating: 40] Favorites ----------- Power Ion Engine Engine Ion Engine Propulsion Aluminum Leg Leg Aluminum Leg Utility Weapon Cycler Device Weapon Cycler Storage Medium Storage Unit Weapon Assault Rifle Energy Gun Heavy Laser Energy Cannon Ion Cannon Ballistic Gun Assault Rifle Build | -11 -10 -10 -10 -9 -8 ------- Run | Yrd Mat Min Exi Min Mat Slots Evolved 4 | . . . . . 4 Power . | . . . . . . Propulsion . | . . . . . . Utility 4 | . . . . . 4 Weapon . | . . . . . . Parts Attached 24 | 5 . 2 2 . 15 Power 2 | 1 . . . . 1 Engine 2 | 1 . . . . 1 Core . | . . . . . . Reactor . | . . . . . . Propulsion 4 | 2 . 1 . . 1 Treads . | . . . . . . Leg 4 | 2 . 1 . . 1 Wheel . | . . . . . . Hover . | . . . . . . Flight . | . . . . . . Utility 8 | . . 1 1 . 6 Device 7 | . . 1 . . 6 Storage 1 | . . . 1 . . Processor . | . . . . . . Hackware . | . . . . . . Protection . | . . . . . . Artifact . | . . . . . . Weapon 10 | 2 . . 1 . 7 Energy Gun 3 | . . . . . 3 Energy Cannon 1 | . . . . . 1 Ballistic Gun 6 | 2 . . 1 . 3 Ballistic Cannon . | . . . . . . Launcher . | . . . . . . Special Weapon . | . . . . . . Impact Weapon . | . . . . . . Slashing Weapon . | . . . . . . Piercing Weapon . | . . . . . . Special Melee Weapon . | . . . . . . Unidentified Prototypes . | . . . . . . Parts Lost 17 | . . 1 . 1 15 Power 2 | . . . . . 2 Propulsion 4 | . . 1 . . 3 Utility 6 | . . . . . 6 Weapon 5 | . . . . 1 4 Highest Loss Streak 9 | . . 1 . 1 9 To Critical Strikes . | . . . . . . Average Backups 4 | . 1 3 4 5 4 Power . | . . . . . . Propulsion . | . . . . . . Utility 1 | . . . . 2 2 Weapon 1 | . 1 3 2 2 . Tool/Special . | . . . . . . Unused Backups 6 | . . 1 2 . 3 Power . | . . . . . . Propulsion 1 | . . . 1 . . Utility 2 | . . . . . 2 Weapon 2 | . . 1 1 . . Tool/Special 1 | . . . . . 1 Average Slot Usage (%) 80 | . 71 78 91 97 73 Engine 11 | . 14 14 14 14 7 Leg 22 | . 28 27 28 28 15 Device 17 | . . 8 14 14 26 Storage 6 | . . . 6 14 9 Energy Gun 2 | . . . . . 4 Ballistic Gun 20 | . 28 28 28 26 9 Peak Build Rating 40 | 5 5 6 14 14 40 Average Rating 16 | 3 5 5 9 13 27 On Entrance 7 | . 5 5 6 14 13 Avg Prop Armor Cover (%) . | . . . . . . Naked Turns . | . . . . . . Heaviest Build 30 | 8 8 9 20 20 30 Greatest Support 25 | 20 20 20 20 20 25 Greatest Overweight (x) 5 | . . . . . 5 Average Overweight (x) . | . . . . . 1 Largest Inventory Capacity 10 | 5 5 5 10 10 10 Average Capacity 7 | 5 5 5 7 10 9 Most Carried 10 | 2 3 5 10 10 10 Average Carried 6 | . 1 3 5 10 9 Final Capacity 10 | 5 5 5 10 10 10 Final Carried 10 | . 3 4 10 10 9 Class Distribution -------------------- 85% | Mutant 14% | Scavenger-Mutant Dominant Class ---------------- Mutant | -10/Materials Mutant | -10/Mines Mutant | -10/Exiles Mutant | -9/Mines Mutant | -8/Materials Resources | -11 -10 -10 -10 -9 -8 ----------- Run | Yrd Mat Min Exi Min Mat Matter Collected 748 | 250 68 83 . 54 293 Remotely . | . . . . . . Salvage Created 774 | . 82 92 . 146 454 Parts 56 | . 7 5 . 10 34 Haulers Intercepted 2 | . 1 . . . 1 Recyclers Shooed 4 | . . . . . 4 Parts Field Recycled . | . . . . . . Retrieved Matter . | . . . . . . Parts Self-Destructed . | . . . . . . Prevented . | . . . . . . Parts Restored . | . . . . . . Kills | -11 -10 -10 -10 -9 -8 ------- Run | Yrd Mat Min Exi Min Mat Combat Hostiles Destroyed 18 | . 2 2 . 3 11 Guns 14 | . 2 2 . 3 7 Cannons 4 | . . . . . 4 Classes Destroyed 9 | . 2 1 . 1 5 Worker 1 | . . . . . 1 Tunneler 1 | . . . . . 1 Hauler 2 | . 1 . . . 1 Recycler 1 | . . . . . 1 Watcher 1 | . . . . . 1 Swarmer 9 | . 2 . . . 7 Grunt 7 | . . 2 . 2 3 Brawler 1 | . . . . 1 . Sentry 1 | . . . . . 1 Best Kill Streak 7 | . 2 1 . 3 7 Combat Bots Only 4 | . 2 1 . 3 4 Max Kills in Single Turn 1 | . 1 1 . 1 1 Gunslinging . | . . . . . . Exploded . | . . . . . . Melee . | . . . . . . Uniques/NPCs Destroyed . | . . . . . . Combat | -11 -10 -10 -10 -9 -8 -------- Run | Yrd Mat Min Exi Min Mat Hostile Shots Fired 210 | . 16 28 . 10 156 Missed 69 | . 2 9 . 3 55 Hits 141 | . 14 19 . 7 101 Projectile 141 | . 14 19 . 7 101 AOE 3 | . . . . . 3 Critical Strikes 8 | . . 1 . . 7 Damage Taken 2025 | . 120 268 . 79 1558 Core 641 | . 24 60 . . 557 Absorbed by Shields . | . . . . . . Core Remaining (%) 83 | 100 . . . 66 . Volleys Fired 92 | . 17 17 . 7 51 Largest 2 | . 2 2 . 2 2 Hottest 125 | . 40 40 . 40 125 Shots Fired 164 | . 34 34 . 13 83 Gun 151 | . 34 34 . 13 70 Cannon 13 | . . . . . 13 Launcher . | . . . . . . Special . | . . . . . . Kinetic 121 | . 34 34 . 13 40 Thermal 43 | . . . . . 43 Explosive . | . . . . . . Electromagnetic . | . . . . . . Robot Hit Streak 7 | . 5 7 . 6 7 Robot Miss Streak 5 | . 4 2 . 2 5 Penetration Max . | . . . . . . Secondary Targets 4 | . 1 1 . 1 1 Max Gunslinging Chain 1 | . 1 1 . 1 1 Shots Hit Robots 100 | . 19 20 . 9 52 Core Hits 47 | . 6 6 . 5 30 Critical Kills . | . . . . . . Critical Parts Destroyed . | . . . . . . Critical Strikes 1 | . . . . . 1 Burn 1 | . . . . . 1 Melee Attacks . | . . . . . . Impact . | . . . . . . Slashing . | . . . . . . Piercing . | . . . . . . Sneak Attacks . | . . . . . . Combat Hostiles . | . . . . . . Follow-up Attacks . | . . . . . . Damage Inflicted 1611 | . 204 192 . 113 1102 Guns 1377 | . 204 192 . 113 868 Cannons 234 | . . . . . 234 Explosions . | . . . . . . Melee . | . . . . . . Ramming . | . . . . . . Kinetic 1072 | . 204 192 . 113 563 Thermal 539 | . . . . . 539 Explosive . | . . . . . . Electromagnetic . | . . . . . . Impact . | . . . . . . Slashing . | . . . . . . Piercing . | . . . . . . Highest Corruption . | . . . . . . Average Corruption . | . . . . . . Corruption Purged . | . . . . . . Corruption Blocked . | . . . . . . Overload Shots . | . . . . . . Overflow Damage . | . . . . . . Projectiles . | . . . . . . Explosions . | . . . . . . Melee . | . . . . . . Knockbacks . | . . . . . . Impact . | . . . . . . Kinetic . | . . . . . . Secondary . | . . . . . . Self-Inflicted Damage . | . . . . . . Shots . | . . . . . . Rammed . | . . . . . . Targets Rammed . | . . . . . . Kicked . | . . . . . . Crushed . | . . . . . . Highest Temperature 80 | . . 36 . . 80 Average Temperature 21 | . . 11 . . 25 Received Heat Transfer 786 | . . 177 . 42 567 Siege Activations . | . . . . . . Martial Activations . | . . . . . . Shielding Activations . | . . . . . . Robots Disrupted . | . . . . . . Combat Hostiles . | . . . . . . Robots Corrupted . | . . . . . . Combat Hostiles . | . . . . . . Parts Fried . | . . . . . . Impact Corruptions . | . . . . . . Robots Melted . | . . . . . . Combat Hostiles . | . . . . . . Parts Melted 2 | . . . . . 2 Heat Transferred 1073 | . . . . . 1073 Parts Sabotaged . | . . . . . . Parts Stolen . | . . . . . . Parts Stripped . | . . . . . . Power Chain Reactions . | . . . . . . Alert | -11 -10 -10 -10 -9 -8 ------- Run | Yrd Mat Min Exi Min Mat Maximum Alert Level . | . . . . . . Low Security (%) 100 | 100 100 100 . 100 100 Level 1 . | . . . . . . Level 2 . | . . . . . . Level 3 . | . . . . . . Level 4 . | . . . . . . Level 5 . | . . . . . . High Security . | . . . . . . Max Security . | . . . . . . Peak Influence 88 | . 40 30 . 60 88 Initial 19 | . . 4 . . 19 Average 19 | . 20 8 . 19 24 Influence Increases 496 | . 72 50 . 70 304 Destroy 0b10 Robot/C 360 | . 40 40 . 60 220 Destroy 0b10 Robot/NC 30 | . 5 . . . 25 Destroy Leader 76 | . 12 10 . 10 44 Disable Machine 15 | . 15 . . . . Lose Combat Pursuer 15 | . . . . . 15 Influence Decreases 463 | . 60 62 . 20 321 Entered New Map 39 | . . 8 . . 31 Time Decay 297 | . 60 44 . 10 183 Lost Part 127 | . . 10 . 10 107 Squads Dispatched 3 | . . . . . 3 Investigation . | . . . . . . Extermination . | . . . . . . Reinforcement 3 | . . . . . 3 Assault . | . . . . . . Garrison . | . . . . . . Intercept . | . . . . . . Searches Triggered . | . . . . . . Construction Impeded 1 | . . . . . 1 Haulers Reinforced . | . . . . . . Active Scanning Responses . | . . . . . . Cargo Convoy Interrupts . | . . . . . . Stealth | -11 -10 -10 -10 -9 -8 --------- Run | Yrd Mat Min Exi Min Mat Distress Signals 1 | . . . . . 1 Communications Jammed . | . . . . . . Distress Signals . | . . . . . . Times Spotted 28 | . 4 2 . 3 19 Peak Tracking Total 4 | . 3 2 . 3 4 Tactical Retreats 1 | . . . . . 1 Traps | -11 -10 -10 -10 -9 -8 ------- Run | Yrd Mat Min Exi Min Mat Traps Triggered . | . . . . . . Indirectly . | . . . . . . Trap Hack Attempts . | . . . . . . Triggered . | . . . . . . Disarmed . | . . . . . . Reprogrammed . | . . . . . . Reused . | . . . . . . Traps Extracted . | . . . . . . Installed . | . . . . . . Triggered . | . . . . . . Machines | -11 -10 -10 -10 -9 -8 ---------- Run | Yrd Mat Min Exi Min Mat Machines Disabled 1 | . 1 . . . . Max in Single Turn 1 | . 1 . . . . Machines Repaired . | . . . . . . Machines Dismantled . | . . . . . . Machines Sabotaged . | . . . . . . Overloaded Fab Kills . | . . . . . . Hacking | -11 -10 -10 -10 -9 -8 --------- Run | Yrd Mat Min Exi Min Mat Machines Accessed 1 | . . . 1 . . Terminals . | . . . . . . Fabricators . | . . . . . . Repair Stations . | . . . . . . Recycling Units . | . . . . . . Scanalyzers . | . . . . . . Garrison Access . | . . . . . . Total Hacks 1 | . . . 1 . . Successful 1 | . . . 1 . . Failed . | . . . . . . Catastrophic . | . . . . . . Database Lockouts . | . . . . . . Manual 1 | . . . 1 . . Terminals . | . . . . . . Fabricators . | . . . . . . Repair Stations . | . . . . . . Recycling Units . | . . . . . . Scanalyzers . | . . . . . . Garrison Access . | . . . . . . Terminal Hacks 1 | . . . 1 . . Proto ID Catalog 1 | . . . 1 . . Fabricator Hacks . | . . . . . . Repair Station Hacks . | . . . . . . Recycling Unit Hacks . | . . . . . . Scanalyzer . | . . . . . . Garrison Access Hacks . | . . . . . . Unauthorized Hacks . | . . . . . . Terminals . | . . . . . . Fabricators . | . . . . . . Repair Stations . | . . . . . . Recycling Units . | . . . . . . Scanalyzers . | . . . . . . Garrison Access . | . . . . . . Data Cores Recovered . | . . . . . . Used . | . . . . . . Hacking Detections . | . . . . . . Full Trace Events . | . . . . . . Feedback Events . | . . . . . . Feedback Blocked . | . . . . . . Robot Schematics Acquired . | . . . . . . Robots Built . | . . . . . . Authchips . | . . . . . . Time . | . . . . . . Total Robot Build Rating . | . . . . . . Part Schematics Acquired . | . . . . . . Parts Built . | . . . . . . Authchips . | . . . . . . Time . | . . . . . . Total Part Build Rating . | . . . . . . Part Studies Acquired . | . . . . . . Parts Repaired . | . . . . . . Time . | . . . . . . Parts Recycled . | . . . . . . Recycled Matter . | . . . . . . Retrieved Matter . | . . . . . . Retrieved Components . | . . . . . . Parts Scanalyzed . | . . . . . . Part Schematics Acquired . | . . . . . . Parts Damaged . | . . . . . . Bothacking | -11 -10 -10 -10 -9 -8 ------------ Run | Yrd Mat Min Exi Min Mat Used RIF Installer . | . . . . . . Robots Hacked . | . . . . . . Non-combat . | . . . . . . Combat . | . . . . . . Robot Hacks Applied . | . . . . . . Relay Couplers Released . | . . . . . . Fabnet Peak Effective % . | . . . . . . Robots Rewired . | . . . . . . Allies Hacked . | . . . . . . Hacks Repelled . | . . . . . . Allies | -11 -10 -10 -10 -9 -8 -------- Run | Yrd Mat Min Exi Min Mat Total Allies . | . . . . . . Largest Group . | . . . . . . Highest-Rated Group . | . . . . . . Highest-Rated Ally . | . . . . . . Total Orders . | . . . . . . Ally Attacks . | . . . . . . Total Damage . | . . . . . . Kills . | . . . . . . Allies Corrupted . | . . . . . . Allies Melted . | . . . . . . Intel | -11 -10 -10 -10 -9 -8 ------- Run | Yrd Mat Min Exi Min Mat Active Infowar (turns) . | . . . . . . Robot Analysis Total . | . . . . . . Derelict Logs Recovered . | . . . . . . Drone Launches . | . . . . . . Drone Recoveries . | . . . . . . Exploration | -11 -10 -10 -10 -9 -8 ------------- Run | Yrd Mat Min Exi Min Mat Turns Passed 1615 | 58 143 177 490 70 677 Spaces Moved 939 | 56 76 103 403 42 259 Core 48 | 27 . . . . 21 Treads . | . . . . . . Legs 891 | 29 76 103 403 42 238 Wheels . | . . . . . . Hover . | . . . . . . Flight . | . . . . . . Fastest Speed 50 | 50 120 120 120 120 120 Average Speed 134 | 86 120 120 120 120 179 Slowest Speed 300 | 120 120 120 120 120 300 Overloaded Moves . | . . . . . . Propulsion Burnouts . | . . . . . . Robots Hopped . | . . . . . . Potential Cave-ins . | . . . . . . Cave-ins Triggered . | . . . . . . Exploration Rate (%) 27 | 3 25 28 62 18 27 Regions Visited 5 Branch Regions 3 Pre-discovered Areas . | . . . . . . Known Exits Taken . | . . . . . . Unknown Exits Taken 5 | 1 1 1 1 1 . Scrap Searched 1 | . . 1 . . . Spaces Dug . | . . . . . . Terrain Destroyed . | . . . . . . Melee . | . . . . . . Projectile . | . . . . . . AOE . | . . . . . . Terrain Rammed . | . . . . . . Walls Destroyed . | . . . . . . Machines Disabled . | . . . . . . Actions | -11 -10 -10 -10 -9 -8 --------- Run | Yrd Mat Min Exi Min Mat Total 1167 | 65 97 126 409 48 422 Wait 68 | . 2 . . . 66 Move 934 | 55 75 102 402 41 259 Hop . | . . . . . . Pick Up 29 | 5 3 4 3 . 14 Fast Attach 10 | . . . 1 . 9 Attach 17 | 5 . 2 . . 10 Detach 1 | . . . . . 1 Swap 1 | . . . 1 . . Drop 15 | . . 1 2 . 12 Fire 92 | . 17 17 . 7 51 Melee . | . . . . . . Ram . | . . . . . . Kick . | . . . . . . Crush . | . . . . . . Escape Stasis . | . . . . . . Rewire . | . . . . . . Trap . | . . . . . . Miscellaneous . | . . . . . . Route ------- -11/Scrapyard -10/Materials -10/Mines (discovered 2 exits: [*Mat] / *Exi) -10/Exiles -9/Mines -8/Materials History --------- Turn | Location | Event 9 | -11/Scrapyard | Discovered new exit (range 15) 59 | -11/Scrapyard | Entered Materials 188 | -10/Materials | Discovered new exit (range 13) 202 | -10/Materials | Entered Mines 323 | -10/Mines | Build established: Mutant 343 | -10/Mines | Discovered new exit (range 9) 374 | -10/Mines | Deemed a non-threat by the Exiles lab entrance 374 | -10/Mines | Discovered new exit (range 5) 379 | -10/Mines | Entered Exiles 408 | -10/Exiles | Met 8R-AWN 430 | -10/Exiles | Met EX-HEX 467 | -10/Exiles | Met EX-BIN 484 | -10/Exiles | Aligned with FarCom system 485 | -10/Exiles | Given EX-Vault access code 515 | -10/Exiles | Opened EX-Vault 533 | -10/Exiles | Found Trap Reconfigurator 537 | -10/Exiles | Found Chronowheel 563 | -10/Exiles | Warned to stay clear of 0b10 Research branches 598 | -10/Exiles | Met EX-DEC 753 | -10/Exiles | Found Army-in-a-Box 856 | -10/Exiles | Discovered new exit (range 10) 869 | -10/Exiles | Stole three prototypes: Trap Reconfigurator, Army-in-a-Box, Chronowheel 869 | -10/Exiles | Entered Mines 902 | -9/Mines | Discovered new exit (range 15) 939 | -9/Mines | Entered Materials 939 | -8/Materials | Evolved 4 slots: Utility x4 1313 | -8/Materials | Lost 4 parts (1p1n1u1w) 1571 | -8/Materials | Lost 9 parts (1p2n4u2w) 1592 | -8/Materials | Core integrity fell below 50% 1607 | -8/Materials | Core integrity fell below 20% 1616 | -8/Materials | Destroyed by G-47 Trooper with Particle Gun Last Messages --------------- U-05 Engineer lays Concrete. Slug penetrates Wall. U-05 Engineer lays Concrete. K-01 Serf collects debris. U-05 Engineer lays Concrete. U-05 Engineer builds a Wall. U-05 Engineer lays Concrete. U-05 Engineer builds a Wall. Penetrated by Slug. U-05 Engineer builds a Wall. Penetrated by Slug. G-47 Trooper suffers critical hit (Destroy). G-47 Trooper destroyed. Penetrated by Slug. Critical hit (Burn: +37). Slug penetrates Wall. K-01 Serf collects debris. Penetrated by Slug. U-05 Engineer lays Concrete. K-01 Serf collects debris. Map ----- +----------------------------------------------------+ | ???????????????????????????????????? | | ???????????????????????????????????? | | ???????????????????????????????????? | | ???????????????????????????????????? | | ???????????????????????????????????? | | ???????????????????????????????????? | | ???????????????????????????????????? | | ???????????????????????????????????? | | ???????????????????? ????????????? | | ???????????????????# #???????????? | | ???????????????????# #???????????? | | ???????????????????# #???????????? | | ???????????????????# #???????????? | | ???????????????????# #???????????? | | ???????????????????# #???????????? | | ???????????????????# #???????????? | | ???????????????????# #???????????? | | ???????????????????#xx #???????????? | | ???????????????????# ##########??? | | ???????????######### # #??? | | ???? ????# ## # ###? | | ??? ????# ## # "" ? | | ?? ???# == ## # """# | | ?? ###? = ## g S"# | | ?? ? ! ## # ![["""# | | ?? ? ##= # @ ![["""# | | ?? #########%% # [[ ##?? | | ?????????# %[ # #??? | | ?????????# ##########??? | | ?????????# %% # ????? | | ?????????# % / ????? | | ?????????# # ???? | | ????????## # ???? | | ????????## # ???? | | ????????## # ???? | | ??????#### # ???? | | ??????# # ???? | | ??????# #"######????? | | ??????# ###?????????? | | ??????# % ##??????????? | | ??????# ##??????????? | | ?????##+##+## #####+###??????????? | | ?????# # # #??????????? | | ?????# """ # # """ #??????????? | | ?????# """ + + """ #??????????? | | ?????# """ # # """ #??????????? | | ?????# """ # # #??????????? | | ?????# /# ####/####??????????? | | ?????######## #??# #?????????????? | | ????????????# #??# #?????????????? | +----------------------------------------------------+ Best States ------------- Heat Dissipation 60 Energy Generation 14 Energy Capacity 250 Matter Stores 300 Matter Capacity 300 Sight Range 16 Terrain Scan Density 10 Weapon Cycling 30 Evasion (%) 55 Matter Filtering 30 Particle Charging 15 Kinecelleration 30 Item Schematics ----------------- None Robot Schematics ------------------ None Fabricated ------------ Nothing Repaired ---------- Nothing Studied --------- None Alien Tech Used ----------------- None Achievements -------------- None Challenges ------------ None Game ------ Seed WaveThrowingExtrapolator Manual? 0 Play Time 00:13:49 Cumulative 230.4 hours Start 2026.02.02 @ 19:09:41 End 2026.02.02 @ 19:35:28 Sessions 2 Manual Loads 0 Difficulty Rogue Special Mode None Game No. 644 Rogue 643 Adventurer 1 Explorer 0 Win Type - Total 0 Types 0/0/0/0/0/0/0/0/0/0 Lore% 65 Gallery% 63 Achievement% 39 Wizard Run 0 Options --------- Layout 1 ASCII 0 Keyboard 0 Movement Mouse Keybinds 0 Fullscreen 1 Font 24/Smallcaps Map View 50x35 Zoom Use 0% Tactical HUD 0 Map Filters NONE Filters NONE Steam 1 RUN: 599c8d71-1d29-49ea-9280-f2c8cf769386